bitfinex/quotes_SOLUSD_20241209
["timestamp","ask_amount","ask_price","bid_price","bid_amount"]
[1733728259479,0.7125439,229.15,228.98,25.37993263]
[1733728259656,0.7125439,229.18,228.99,0.65482171]
[1733728260066,0.7125439,229.18,229.04,25.37993263]
[1733728260361,3.11694808,229.26,229.05,0.65466281]
[1733728260557,0.7125439,229.25,229.05,26.03459544]
[1733728260754,0.7125439,229.25,229.05,0.65466281]
[1733728261168,0.7125439,229.25,229.06,0.65462677]
[1733728261454,0.7125439,229.25,229.11,25.37993263]
[1733728261788,0.7125439,229.3,229.15,25.37993263]
[1733728261969,0.7125439,229.3,229.16,0.65427184]
[1733728262155,5.51687142,229.37,229.16,0.65427184]
[1733728262156,0.7125439,229.36,229.16,26.03420447]
[1733728262480,0.7125439,229.36,229.18,25.37993263]
[1733728262782,0.7125439,229.36,229.2,25.37993263]
[1733728262996,0.7125439,229.36,229.21,26.03405207]
[1733728263150,0.5059817,229.41,229.23,25.37993263]
[1733728263151,1.2185256,229.41,229.23,25.37993263]
[1733728263354,1.2185256,229.41,229.3,25.37993263]
[1733728263586,0.5059817,229.41,229.34,25.37993263]
[1733728263885,0.5059817,229.41,229.38,25.37993263]
[1733728264068,0.5059817,229.41,229.35,0.65378143]
[1733728264069,0.5059817,229.41,229.39,25.37993263]
[1733728264383,0.5059817,229.41,229.4,25.37993263]
[1733728266891,0.5059817,229.41,229.4,26.03343193]
[1733728267058,0.5059817,229.41,229.4,25.37993263]
[1733728267462,0.5059817,229.41,229.4,26.03343835]
[1733728267803,0.5059817,229.41,229.4,60.06130235]
[1733728268086,17.439307,229.61,229.44,0.12549]
[1733728268392,0.5059817,229.65,229.58,25.37993263]
[1733728268894,0.5059817,229.65,229.61,25.37993263]
[1733728269310,0.5059817,229.65,229.62,25.37993263]
[1733728269459,0.5059817,229.65,229.61,25.37993263]
[1733728269665,0.5059817,229.65,229.55,20.0]
[1733728269666,0.5059817,229.65,229.62,25.37993263]
[1733728269881,0.5059817,229.65,229.55,0.65308012]
[1733728269882,3.1087,229.8,229.61,25.37993263]
[1733728269883,3.1087,229.72,229.61,25.37993263]
[1733728270188,0.3971667,229.65,229.61,25.37993263]
[1733728270689,0.3971667,229.65,229.63,25.37993263]
[1733728270860,0.3971667,229.65,229.62,25.37993263]
[1733728271061,0.3971667,229.65,229.64,25.37993263]
[1733728271458,0.3971667,229.65,229.63,25.37993263]
[1733728271661,0.3971667,229.65,229.46,5.0]
[1733728271864,0.3971667,229.65,229.52,25.37993263]
[1733728272173,0.3971667,229.65,229.56,25.37993263]
[1733728272377,0.3971667,229.65,229.61,25.37993263]
[1733728272569,0.3971667,229.65,229.62,0.65300705]
[1733728273090,0.3971667,229.65,229.58,25.37993263]
[1733728273305,0.3971667,229.65,229.59,0.65306175]
[1733728273998,0.3971667,229.65,229.56,25.37993263]
[1733728274359,0.3971667,229.65,229.57,26.03306471]
[1733728274693,0.3971667,229.65,229.61,25.37993263]
[1733728274872,0.3971667,229.65,229.63,25.37993263]
[1733728275213,0.3971667,229.65,229.64,0.65294337]
[1733728275377,0.3971667,229.65,229.61,25.37993263]
[1733728275591,0.3971667,229.65,229.56,25.37993263]
[1733728275889,0.3971667,229.65,229.57,0.65313116]
[1733728276298,0.3971667,229.65,229.57,26.03306379]
[1733728276590,0.3971667,229.65,229.58,25.37993263]
[1733728276788,0.3971667,229.65,229.59,26.03298733]
[1733728277092,0.3971667,229.65,229.61,25.37993263]
[1733728277297,0.3971667,229.65,229.63,25.37993263]
[1733728277465,0.3971667,229.65,229.64,26.03286562]
[1733728277795,0.3971667,229.65,229.64,0.65293299]
[1733728278196,0.3971667,229.65,229.64,26.03286562]
[1733728278691,0.3971667,229.65,229.64,0.65293299]
[1733728279065,0.3971667,229.65,229.62,25.37993263]
[1733728279066,0.3971667,229.65,229.63,0.65298387]
[1733728280095,0.3971667,229.65,229.61,0.6530149]
[1733728280276,0.3971667,229.65,229.61,26.03294753]
[1733728281572,0.3971667,229.65,229.61,0.6530149]
[1733728281772,0.3971667,229.65,229.6,0.65300782]
[1733728283165,0.3971667,229.65,229.62,25.37993263]
[1733728283371,0.3971667,229.65,229.64,25.37993263]
[1733728284172,0.3971667,229.65,229.63,26.03290083]
[1733728284572,0.3971667,229.65,229.64,25.37993263]
[1733728284782,0.3971667,229.65,229.64,0.65289733]
[1733728285385,0.3971667,229.65,229.57,26.03285013]
[1733728285701,20.0,229.6,229.39,5.0]
[1733728285905,20.0,229.56,229.4,0.65337844]
[1733728286270,0.3971667,229.65,229.42,25.37993263]
[1733728286474,0.3971667,229.65,229.47,25.63091263]
[1733728286676,0.3971667,229.65,229.48,0.65313699]
[1733728287387,20.0,229.64,229.42,0.6533449]
[1733728287710,23.776884,229.59,229.42,0.6533449]
[1733728288007,20.0,229.56,229.42,0.6533449]
[1733728288209,20.0,229.56,229.42,5.6533449]
[1733728288379,0.3971667,229.65,229.44,25.37993263]
[1733728288578,20.0,229.64,229.46,0.12549]
[1733728288780,0.3971667,229.65,229.48,0.12549]
[1733728288993,0.3971667,229.65,229.53,25.37993263]
[1733728289201,0.3971667,229.65,229.54,0.65307884]
[1733728290010,0.3971667,229.65,229.51,0.65310033]
[1733728291097,0.3971667,229.65,229.52,0.65326714]
[1733728291404,0.3971667,229.65,229.47,0.65325911]
[1733728292107,20.0,229.64,229.47,0.65325911]
[1733728292304,20.0,229.6,229.48,0.65339064]
[1733728292477,20.0,229.56,229.43,0.65334942]
[1733728292880,24.4894279,229.63,229.43,26.03328205]
[1733728293081,20.0,229.6,229.45,25.37993263]
[1733728293377,0.3971667,229.65,229.46,26.03324725]
[1733728293573,0.3971667,229.65,229.46,0.65331462]
[1733728294309,0.3971667,229.65,229.47,0.65340119]
[1733728295886,20.0,229.62,229.47,0.65340119]
[1733728296514,0.3971667,229.65,229.48,25.37993263]
[1733728296682,0.3971667,229.65,229.5,25.37993263]
[1733728296882,0.3971667,229.65,229.51,0.65315077]
[1733728297900,0.3971667,229.65,229.57,25.37993263]
[1733728298094,0.3971667,229.65,229.58,26.03302046]
[1733728298304,0.3971667,229.65,229.58,0.65308783]
[1733728299407,0.3971667,229.65,229.57,6.3182]
[1733728299903,0.3971667,229.65,229.51,0.65314991]
[1733728300215,20.0,229.64,229.51,0.65314991]
[1733728300713,0.3971667,229.65,229.51,0.65314991]
[1733728301212,20.0,229.64,229.51,0.65314991]
[1733728303420,24.4894279,229.63,229.51,0.65314991]
[1733728303712,20.0,229.6,229.5,6.2364]
[1733728303885,20.0,229.6,229.51,0.65334683]
[1733728305183,20.0,229.6,229.45,25.37993263]
[1733728305184,20.0,229.6,229.46,0.65330108]
[1733728306587,0.7125439,229.59,229.46,0.65330108]
[1733728306785,0.7125439,229.59,229.43,0.65343233]
[1733728307218,23.776884,229.59,229.43,0.65343233]
[1733728307886,20.0,229.56,229.43,0.65343233]
[1733728308113,20.0,229.56,229.43,26.03336496]
[1733728309819,20.0,229.56,229.43,0.65343233]
[1733728311633,20.0,229.54,229.43,0.65343233]
[1733728311791,23.776884,229.53,229.43,0.65343233]
[1733728312202,20.0,229.5,229.36,6.1797]
[1733728312386,20.0,229.46,229.36,6.1797]
[1733728312599,20.0,229.46,229.34,0.65374349]
[1733728313321,24.4894279,229.49,229.34,0.65374349]
[1733728313503,20.0,229.46,229.34,0.65374349]
[1733728318322,0.7125439,229.56,229.38,25.37993263]
[1733728318625,17.439454,229.57,229.4,25.37993263]
[1733728318830,17.439454,229.57,229.41,26.03333912]
[1733728319203,17.439454,229.57,229.42,25.37993263]
[1733728319411,17.439454,229.57,229.43,0.65334189]
[1733728320601,0.7125439,229.56,229.43,0.65334189]
[1733728320802,20.0,229.54,229.34,0.65350391]
[1733728320994,23.776884,229.51,229.34,0.65350391]
[1733728321204,23.776884,229.49,229.34,0.65350391]
[1733728322232,20.0,229.46,229.33,0.65367228]
[1733728322431,24.4894279,229.45,229.33,0.65367228]
[1733728322956,41.9395599,229.45,229.27,0.65384144]
[1733728323118,23.776884,229.41,229.27,0.65384144]
[1733728323447,23.776884,229.41,229.26,6.0279]
[1733728323448,20.0,229.36,229.23,0.65394937]
[1733728323935,3.1087,229.41,229.2,0.65402591]
[1733728323936,20.0,229.32,229.2,0.65402591]
[1733728324168,20.0,229.32,229.19,6.2237]
[1733728324537,0.8397,229.3,229.18,0.65415683]
[1733728324738,20.0,229.26,229.06,25.37993263]
[1733728324953,0.7125439,229.25,229.07,0.65435906]
[1733728325242,20.0,229.22,229.07,0.65435906]
[1733728325644,0.7125439,229.21,229.07,0.65435906]
[1733728325853,23.776884,229.2,229.03,0.65450833]
[1733728326775,0.7125439,229.19,229.03,0.65450833]
[1733728326944,23.776884,229.18,229.03,0.65450833]
[1733728327145,20.0,229.15,229.03,0.65450833]
[1733728327369,20.0,229.15,229.04,0.65462012]
[1733728327540,23.776884,229.18,229.04,0.65462012]
[1733728327944,23.776884,229.27,229.05,25.37993263]
[1733728328248,0.98992129,229.29,229.09,25.37993263]
[1733728328445,0.98992129,229.29,229.01,0.1103695]
[1733728328446,0.7125439,229.28,229.1,0.65430309]
[1733728328758,0.98992129,229.27,229.1,0.65430309]
[1733728329067,0.7125439,229.26,229.03,25.37993263]
[1733728329267,0.7125439,229.26,229.04,0.65453961]
[1733728329436,23.776884,229.21,229.04,0.65453961]
[1733728329633,20.0,229.22,229.07,25.37993263]
[1733728329852,4.09862129,229.31,229.1,25.37993263]
[1733728330032,4.09862129,229.31,229.12,25.37993263]
[1733728330033,0.7125439,229.29,229.12,25.37993263]
[1733728330277,0.7125439,229.29,229.13,0.65432096]
[1733728330871,0.98992129,229.28,229.1,0.654403]
[1733728331042,23.776884,229.23,229.1,0.654403]
[1733728331234,23.776884,229.21,229.1,0.654403]
[1733728331431,20.0,229.18,229.05,0.65452769]
[1733728332361,20.0,229.14,229.0,0.65454346]
[1733728332849,24.4894279,229.13,229.0,0.65454346]
[1733728333177,23.776884,229.13,229.0,0.65454346]
[1733728333342,23.776884,229.11,228.97,0.2071092]
[1733728333544,23.776884,229.09,228.97,0.2071092]
[1733728334276,0.8397,229.15,228.97,0.2071092]
[1733728334277,23.776884,228.99,228.97,0.2071092]
[1733728334464,23.776884,229.06,228.97,0.2071092]
[1733728334773,23.776884,229.11,228.97,0.2071092]
[1733728334941,23.776884,229.09,228.98,0.65480016]
[1733728335944,0.7125439,229.14,228.98,0.65480016]
[1733728336142,0.8397,229.23,229.05,25.37993263]
[1733728336143,0.7125439,229.22,229.05,25.37993263]
[1733728336353,0.7125439,229.22,229.06,0.65458981]
[1733728336967,0.7125439,229.22,229.02,25.37993263]
[1733728337143,0.7125439,229.22,229.03,25.99793644]
[1733728337790,0.7125439,229.22,229.04,25.34330819]
[1733728337943,0.7125439,229.22,228.99,25.99789876]
[1733728338270,20.0,229.21,228.99,0.65459057]
[1733728338478,23.776884,229.16,228.99,0.65459057]
[1733728338680,23.776884,229.12,228.99,0.65459057]
[1733728338852,24.4894279,229.12,228.99,0.65459057]
[1733728339266,24.4894279,229.12,228.98,0.65482537]
[1733728339868,0.7125439,229.11,228.98,0.65482537]
[1733728340177,20.0,229.07,228.97,0.2071092]
[1733728340566,24.4894279,229.06,228.97,0.2071092]
[1733728341268,23.776884,229.06,228.97,0.8620362]
[1733728341580,23.776884,229.11,228.97,0.8620362]
[1733728341891,0.7125439,229.1,228.97,0.8620362]
[1733728342091,23.776884,229.05,228.97,0.2071092]
[1733728342295,24.4894279,229.05,228.97,0.2071092]
[1733728342599,20.0,229.02,228.97,0.2071092]
[1733728342894,23.776884,229.01,228.97,0.2071092]
[1733728343610,20.0,228.98,228.97,0.2071092]
[1733728343773,43.776884,228.98,228.97,0.2071092]
[1733728343971,20.0,228.98,228.97,0.2071092]
[1733728344194,23.776884,229.02,228.97,0.2071092]
[1733728344367,3.1087,229.07,228.97,0.2071092]
[1733728344568,1.90349519,229.14,228.97,0.2071092]
[1733728344569,17.479637,229.1,228.97,0.2071092]
[1733728344770,17.479637,229.1,228.98,0.65480187]
[1733728344996,0.7125439,229.09,228.98,0.65480187]
[1733728345291,0.7125439,229.13,228.98,0.65480187]
[1733728345802,23.776884,229.12,228.97,0.2071092]
[1733728346013,0.7125439,229.11,228.97,0.2071092]
[1733728347005,20.0,229.07,228.97,0.2071092]
[1733728347176,24.4894279,229.08,228.97,0.2071092]
[1733728348109,0.7125439,229.18,229.01,41.20165383]
[1733728348270,0.7125439,229.18,229.02,41.85633896]
[1733728348607,0.7125439,229.18,229.02,0.65468513]
[1733728348903,5.6508649,229.18,229.03,41.20165383]
[1733728349137,5.6508649,229.18,229.02,0.65468513]
[1733728349282,5.6508649,229.18,228.99,0.65474018]
[1733728349593,3.11694808,229.17,228.99,0.65474018]
[1733728349799,0.7125439,229.16,228.99,0.65474018]
[1733728350116,23.776884,229.15,228.97,0.2071092]
[1733728350281,23.776884,229.13,228.97,0.2071092]
[1733728350485,23.776884,229.07,228.97,0.2071092]
[1733728350684,23.776884,229.07,228.97,0.8619811]
[1733728350922,23.776884,229.03,228.97,0.2071092]
[1733728353215,24.4894279,229.03,228.97,0.2071092]
[1733728353381,23.776884,228.99,228.97,0.2071092]
[1733728353585,0.7125439,228.98,228.97,0.2071092]
[1733728353896,23.776884,228.98,228.97,0.2071092]
[1733728355351,20.0,229.07,228.97,0.2071092]
[1733728355488,3.9493,229.08,228.97,0.2071092]
[1733728355489,20.0,228.99,228.97,0.2071092]
[1733728357708,20.0,229.03,228.97,0.2071092]
[1733728358116,0.7125439,229.02,228.97,0.2071092]
[1733728359225,0.7125439,229.05,228.97,0.2071092]
[1733728359726,0.7125439,229.07,228.97,0.2071092]
[1733728360293,0.7125439,229.11,228.97,0.2071092]
[1733728361295,0.7125439,229.13,228.97,0.2071092]
[1733728361515,0.7125439,229.13,228.97,0.86201657]
[1733728361829,0.7125439,229.13,228.97,0.2071092]
[1733728362028,0.7125439,229.13,228.97,0.86193032]
[1733728362196,0.7125439,229.13,229.0,25.37293634]
[1733728362403,0.7125439,229.17,229.01,0.65473395]
[1733728362926,5.51687142,229.16,228.99,6.3807]
[1733728363219,0.7125439,229.15,228.99,6.3807]
[1733728363525,20.0,229.11,228.99,6.3807]
[1733728363733,0.7125439,229.1,229.0,0.65483011]
[1733728363932,0.7125439,229.13,229.0,0.65483011]
[1733728364224,29.29375542,229.14,229.0,26.02776645]
[1733728364225,5.51687142,229.14,229.0,26.02776645]
[1733728364413,4.938321,229.18,229.02,25.37293634]
[1733728364740,0.7125439,229.17,229.03,0.65464416]
[1733728365091,5.51687142,229.16,229.0,0.65474634]
[1733728365396,0.7125439,229.15,229.0,0.65474634]
[1733728365612,20.0,229.13,229.0,0.65474634]
[1733728365814,0.7125439,229.12,229.01,23.776884]
[1733728366018,0.7125439,229.14,229.01,23.776884]
[1733728366196,20.7125439,229.14,228.99,6.3807]
[1733728366398,29.99999999,229.13,228.97,0.2071092]
[1733728366595,0.7125439,229.12,228.97,0.2071092]
[1733728366799,20.0,229.11,228.97,0.2071092]
[1733728367002,0.7125439,229.1,228.97,0.2071092]
[1733728368733,20.7125439,229.1,228.97,0.2071092]
[1733728368895,4.99999999,229.09,228.97,0.2071092]
[1733728369094,20.0,229.06,228.97,0.2071092]
[1733728369295,0.7125439,229.05,228.97,0.2071092]
[1733728370111,20.7125439,229.05,228.97,0.2071092]
[1733728370735,0.7125439,229.05,228.97,0.2071092]
[1733728372029,20.7125439,229.05,228.97,0.2071092]
[1733728374317,0.7125439,229.05,228.97,0.2071092]
[1733728374516,0.7125439,229.06,228.97,0.2071092]
[1733728376241,20.0,229.07,228.97,0.2071092]
[1733728376547,0.7125439,229.14,228.98,28.86213634]
[1733728376718,0.7125439,229.14,228.99,0.65481193]
[1733728377338,0.7125439,229.14,229.0,6.1943]
[1733728377647,0.7125439,229.15,229.01,0.65480877]
[1733728377818,20.0,229.14,229.01,0.65480877]
[1733728378019,0.7125439,229.13,229.01,0.65480877]
[1733728378917,0.7125439,229.13,229.0,6.1943]
[1733728379439,0.7125439,229.13,229.01,0.6548635]
[1733728379749,0.7125439,229.13,229.01,0.65476795]
[1733728380522,0.7125439,229.14,229.02,25.37293634]
[1733728380747,0.7125439,229.14,229.01,0.65476795]
[1733728380748,0.7125439,229.16,229.03,0.65469012]
[1733728382030,20.0,229.15,229.03,0.65469012]
[1733728382231,0.7125439,229.14,229.03,0.65469012]
[1733728384226,20.0,229.15,229.04,25.37293634]
[1733728384465,20.0,229.15,229.05,0.65463669]
[1733728384759,0.7125439,229.14,229.05,0.65463669]
[1733728384947,0.7125439,229.17,229.05,0.65463669]
[1733728385130,20.0,229.15,229.05,0.65463669]
[1733728387226,4.938321,229.18,229.08,25.37293634]
[1733728387426,4.938321,229.18,229.05,0.65463669]
[1733728387427,4.938321,229.18,229.1,3.4681]
[1733728387644,4.938321,229.18,229.11,32.31766557]
[1733728387850,3.11694808,229.26,229.12,23.776884]
[1733728388090,3.11694808,229.26,229.13,0.65438522]
[1733728388292,0.7125439,229.25,229.13,0.65438522]
[1733728388883,0.7125439,229.25,229.11,6.94462955]
[1733728389062,4.10686937,229.24,229.11,6.2902]
[1733728389265,20.7125439,229.23,229.11,6.2902]
[1733728389461,20.0,229.22,229.11,6.2902]
[1733728389685,0.7125439,229.21,229.11,6.2902]
[1733728389903,20.7125439,229.21,229.11,6.2902]
[1733728390205,24.81941327,229.21,229.11,6.2902]
[1733728390504,20.0,229.19,229.1,3.4681]
[1733728390679,0.7125439,229.18,229.1,3.4681]
[1733728390868,4.81941327,229.18,229.1,3.4681]
[1733728391268,24.81941327,229.18,229.06,6.2696]
[1733728391584,20.0,229.16,229.06,6.2696]
[1733728391785,20.0,229.11,228.97,6.3219092]
[1733728391971,0.7125439,229.1,228.97,6.3219092]
[1733728392311,0.7125439,229.1,228.98,0.65495473]
[1733728392666,0.7125439,229.13,228.98,0.65495473]
[1733728393487,0.7125439,229.13,228.97,6.3219092]
[1733728393688,20.0,229.13,228.97,6.3219092]
[1733728393875,0.7125439,229.12,228.98,0.65491941]
[1733728395003,0.7125439,229.13,228.99,0.65486995]
[1733728395896,0.7125439,229.14,228.98,0.65482792]
[1733728397491,0.7125439,229.14,228.99,23.776884]
[1733728397824,0.7125439,229.14,229.0,0.65476887]
[1733728400027,0.7125439,229.14,228.99,0.65481618]
[1733728400596,0.7125439,229.14,228.97,6.97673559]
[1733728401023,20.0,229.13,228.97,6.97673559]
[1733728401196,20.0,229.11,228.97,6.97673559]
[1733728401393,0.7125439,229.1,228.97,6.3219092]
[1733728401631,20.7125439,229.1,228.97,6.3219092]
[1733728402431,0.7125439,229.1,228.97,6.3219092]
[1733728402643,20.7125439,229.1,228.97,6.3219092]
[1733728403356,0.7125439,229.1,228.98,0.65493701]
[1733728403649,0.7125439,229.12,228.98,0.65493701]
[1733728404019,0.7125439,229.14,228.98,0.65493701]
[1733728404447,20.0,228.99,228.98,24.43182101]
[1733728404821,20.0,228.99,228.97,6.3219092]
[1733728405149,20.0,228.99,228.97,0.2071092]
[1733728405320,0.7125439,228.98,228.97,0.2071092]
[1733728406415,20.0,228.99,228.97,0.2071092]
[1733728407121,20.0,228.99,228.92,3.3039]
[1733728407122,20.0,228.96,228.92,3.3039]
[1733728407320,0.7125439,228.95,228.92,3.3039]
[1733728408119,20.0,228.96,228.92,3.3039]
[1733728409834,20.0,228.99,228.93,23.776884]
[1733728410117,20.0,228.99,228.94,0.65492594]
[1733728412855,20.0,228.99,228.95,23.776884]
[1733728413179,20.0,228.99,228.97,23.776884]
[1733728413774,20.0,228.99,228.98,25.37293634]
[1733728413946,20.0,228.99,228.98,23.776884]
[1733728414539,20.0,228.99,228.98,49.14982034]
[1733728414744,9.7654,228.99,228.98,49.14982034]
[1733728414946,2.6294,228.99,228.98,55.40222034]
[1733728415174,1.6492439,229.21,228.99,23.776884]
[1733728415384,1.6492439,229.21,229.04,25.37293634]
[1733728415541,2.63916519,229.21,229.05,0.65462684]
[1733728415872,2.63916519,229.21,229.06,49.14982034]
[1733728416077,0.98992129,229.21,229.09,31.68983634]
[1733728416378,0.7125439,229.26,229.12,49.14982034]
[1733728416540,0.7125439,229.26,229.13,136.9543776]
[1733728416743,11.74628732,229.27,229.14,23.776884]
[1733728416958,11.74628732,229.27,229.15,0.65436362]
[1733728417573,6.2294159,229.27,229.15,0.65436362]
[1733728418093,6.2294159,229.27,229.14,23.776884]
[1733728418299,6.2294159,229.27,229.11,25.37293634]
[1733728418300,6.2294159,229.27,229.11,0.65439403]
[1733728418501,20.0,229.24,229.11,0.65439403]
[1733728418795,0.7125439,229.23,229.09,6.97137353]
[1733728419795,0.7125439,229.23,229.1,23.776884]
[1733728419996,0.7125439,229.23,229.11,0.65449511]
[1733728420566,0.7125439,229.23,229.09,6.3169]
[1733728420768,20.0,229.2,229.03,6.6061]
[1733728420989,0.7125439,229.19,229.03,6.6061]
[1733728421672,20.7125439,229.19,229.03,6.6061]
[1733728422576,25.71254389,229.19,229.03,6.6061]
[1733728422775,3.3713,229.18,228.98,6.6061]
[1733728422999,20.0,229.16,228.99,0.65481753]
[1733728423177,0.7125439,229.15,228.99,26.02775387]
[1733728423719,0.7125439,229.15,229.0,25.37293634]
[1733728424009,0.7125439,229.15,229.01,0.65471381]
[1733728424184,0.7125439,229.16,229.01,0.65471381]
[1733728424574,0.7125439,229.16,228.99,23.776884]
[1733728425001,0.7125439,229.16,228.98,7.26087473]
[1733728425198,0.7125439,229.16,229.0,0.65480173]
[1733728425793,0.7125439,229.16,228.98,7.26090815]
[1733728427020,0.7125439,229.16,228.98,6.6061]
[1733728427218,0.7125439,229.16,228.98,7.26096028]
[1733728428474,20.0,229.12,228.93,6.4672]
[1733728428681,20.0,229.07,228.94,0.65490285]
[1733728428897,0.7125439,229.06,228.93,6.4672]
[1733728429804,0.7125439,229.06,228.93,7.12219362]
[1733728430197,0.7125439,229.06,228.93,32.49512996]
[1733728430405,0.7125439,229.06,228.93,26.02792996]
[1733728430591,3.5321,229.05,228.93,0.65499362]
[1733728430791,3.5321,229.05,228.93,26.02792996]
[1733728430974,3.5321,229.05,228.96,25.37293634]
[1733728431174,3.5321,229.05,228.97,0.65486421]
[1733728431604,3.5321,229.05,228.93,25.37293634]
[1733728431605,3.5321,229.05,228.95,0.65491075]
[1733728432190,3.5321,229.05,228.93,23.776884]
[1733728432191,4.2446439,229.05,228.93,23.776884]
[1733728432388,4.2446439,229.05,228.94,0.65497741]
[1733728432908,3.5321,229.05,228.94,0.65497741]
[1733728433152,3.5321,229.05,228.96,25.37293634]
[1733728433457,20.0,229.07,228.97,0.65483721]
[1733728433913,3.3444,229.11,229.01,25.37293634]
[1733728434110,3.11694808,229.2,229.08,25.37293634]
[1733728434315,0.7125439,229.19,229.06,25.37293634]
[1733728434511,0.7125439,229.19,229.03,0.65455206]
[1733728434747,0.7125439,229.19,229.02,6.3955]
[1733728435206,0.7125439,229.21,229.03,0.65474444]
[1733728435411,20.0,229.19,229.03,0.65474444]
[1733728435650,4.98781403,229.18,228.98,23.776884]
[1733728435837,20.0,229.17,228.98,24.43170935]
[1733728436033,20.0,229.15,228.99,25.37293634]
[1733728436239,0.7125439,229.14,229.0,26.02770297]
[1733728436556,0.7125439,229.14,229.0,0.65476663]
[1733728436908,0.7125439,229.14,228.98,0.65483086]
[1733728437339,3.371,229.13,228.98,0.65483086]
[1733728437528,0.7125439,229.12,228.98,0.65483086]
[1733728437712,0.7125439,229.12,228.97,6.0268]
[1733728437910,0.7125439,229.12,228.91,7.12002818]
[1733728437911,20.0,229.06,228.91,7.12002818]
[1733728438221,0.7125439,229.05,228.91,7.12002818]
[1733728438411,0.7125439,229.05,228.91,32.49296452]
[1733728439815,0.7125439,229.05,228.91,7.12002818]
[1733728440348,0.7125439,229.05,228.91,32.49296452]
[1733728441529,20.0,229.06,228.93,25.37293634]
[1733728441731,0.7125439,229.05,228.94,26.02787702]
[1733728441922,20.0,229.06,228.96,25.37293634]
[1733728442106,20.0,229.06,228.97,0.6548608]
[1733728442306,0.7125439,229.19,228.9,20.0]
[1733728442307,20.0,229.01,228.9,20.0]
[1733728442518,0.7125439,229.0,228.9,20.0]
[1733728447252,20.0,228.97,228.9,20.0]
[1733728447556,44.4894279,228.96,228.75,0.65531265]
[1733728447709,44.4894279,228.96,228.75,26.02824899]
[1733728447917,44.4894279,228.96,228.77,25.37293634]
[1733728448149,0.7125439,228.96,228.83,25.37293634]
[1733728448345,0.7125439,228.97,228.84,0.65523015]
[1733728448510,0.7125439,228.97,228.8,25.37293634]
[1733728448711,0.7125439,228.97,228.81,0.65526988]
[1733728448911,0.7125439,228.97,228.81,26.02820622]
[1733728449222,0.7125439,228.97,228.81,0.65526988]
[1733728449427,20.0,228.93,228.75,0.65533521]
[1733728449640,23.776884,228.96,228.74,0.4949563]
[1733728449641,23.5803,228.88,228.74,0.4949563]
[1733728449810,0.7125439,228.87,228.74,0.4949563]
[1733728451047,0.7125439,228.87,228.75,0.65560192]
[1733728451425,0.7125439,228.87,228.74,0.15055822]
[1733728451609,0.7125439,228.87,228.74,25.79416937]
[1733728452045,0.7125439,228.87,228.74,0.42123303]
[1733728452208,0.7125439,228.87,228.74,25.79416937]
[1733728452613,3.5803,228.88,228.74,0.42123303]
[1733728452814,3.5803,228.88,228.78,25.37293634]
[1733728453047,3.5803,228.88,228.79,0.27023708]
[1733728453211,3.5803,228.88,228.79,25.64317342]
[1733728453409,3.5803,228.88,228.79,0.27023708]
[1733728453643,3.5803,228.88,228.78,25.37293634]
[1733728453847,3.5803,228.88,228.79,0.270184]
[1733728455511,3.5803,228.88,228.79,25.64312034]
[1733728456047,3.5803,228.88,228.8,25.37293634]
[1733728456249,0.81916918,229.03,228.87,25.37293634]
[1733728456250,3.3916,228.94,228.87,25.37293634]
[1733728456564,5.0,229.1,228.89,25.37293634]
[1733728456565,3.3916,229.01,228.89,25.37293634]
[1733728456872,3.3916,229.01,228.81,6.585]
[1733728456873,3.3916,229.01,228.92,25.37293634]
[1733728457077,3.3916,229.01,228.93,25.64227597]
[1733728457374,3.3916,229.01,228.95,25.37293634]
[1733728457539,3.3916,229.01,228.96,0.26916931]
[1733728457745,3.5868,229.08,228.99,25.37293634]
[1733728457981,3.5868,229.08,229.01,25.37293634]
[1733728458156,3.3864,229.15,229.04,25.37293634]
[1733728458361,3.3864,229.15,228.96,11.56]
[1733728458362,3.3864,229.15,229.09,25.37293634]
[1733728458542,0.81816033,229.21,229.1,25.64111119]
[1733728458746,6.2745,229.22,229.11,25.37293634]
[1733728459054,3.3864,229.23,229.14,25.37293634]
[1733728459246,3.3864,229.23,229.16,25.37293634]
[1733728459441,5.516872,229.27,229.17,0.26756444]
[1733728459781,5.516872,229.27,229.13,25.64054877]
[1733728460152,0.81792765,229.26,229.13,25.64054877]
[1733728460868,5.516872,229.27,229.14,25.37293634]
[1733728461179,5.516872,229.27,229.15,0.26769067]
[1733728461180,20.0,229.24,229.15,0.26769067]
[1733728461558,0.81792713,229.23,229.1,25.37293634]
[1733728461773,0.81792713,229.23,229.11,0.26793069]
[1733728462388,20.0,229.24,229.1,26.21900116]